[Event "Titled Tuesday Blitz December 20 Early 2022"]
[White "CDOEspiao"]
[Black "JaloliddinIlkhomi"]
[WhiteElo "2486"]
[BlackElo "2533"]
[Result "1-0"]
[Round "11"]
[TimeControl "180+2"]
[Date "2022.12.20"]
[WhiteClock "0:01:11"]
[BlackClock "0:01:49"]

1. Nf3 {[%clk 0:02:59]}  Nf6 {[%clk 0:02:59]} 2. g3 {[%clk 0:03:00]}  b6 {[%clk 0:02:55]} 3. Bg2 {[%clk 0:03:00]}  Bb7 {[%clk 0:02:55]} 4. O-O {[%clk 0:03:01]}  e6 {[%clk 0:02:55]} 5. d3 {[%clk 0:03:01]}  d5 {[%clk 0:02:55]} 6. Nbd2 {[%clk 0:03:02]}  c5 {[%clk 0:02:55]} 7. Re1 {[%clk 0:03:02]}  Be7 {[%clk 0:02:55]} 8. e4 {[%clk 0:03:02]}  O-O {[%clk 0:02:56]} 9. e5 {[%clk 0:03:02]}  Nfd7 {[%clk 0:02:56]} 10. Nf1 {[%clk 0:03:03]}  Nc6 {[%clk 0:02:57]} 11. Bf4 {[%clk 0:03:03]}  Qc7 {[%clk 0:02:55]} 12. h4 {[%clk 0:03:03]}  Nd4 {[%clk 0:02:55]} 13. Nxd4 {[%clk 0:03:03]}  cxd4 {[%clk 0:02:56]} 14. h5 {[%clk 0:03:04]}  Rac8 {[%clk 0:02:55]} 15. h6 {[%clk 0:03:04]}  g6 {[%clk 0:02:52]} 16. Rc1 {[%clk 0:03:03]}  Qd8 {[%clk 0:02:43]} 17. Nh2 {[%clk 0:03:00]}  Bg5 {[%clk 0:02:42]} 18. Qg4 {[%clk 0:02:54]}  Bxf4 {[%clk 0:02:41]} 19. Qxf4 {[%clk 0:02:52]}  f5 {[%clk 0:02:40]} 20. Qxd4 {[%clk 0:02:48]}  Qg5 {[%clk 0:02:37]} 21. Qe3 {[%clk 0:02:35]}  f4 {[%clk 0:02:32]} 22. gxf4 {[%clk 0:02:30]}  Rxf4 {[%clk 0:02:32]} 23. Qh3 {[%clk 0:02:22]}  Rh4 {[%clk 0:02:26]} 24. Qxe6+ {[%clk 0:02:21]}  Kh8 {[%clk 0:02:20]} 25. Qxd7 {[%clk 0:02:17]}  Qxh6 {[%clk 0:02:17]} 26. Qxb7 {[%clk 0:02:08]}  Rf8 {[%clk 0:02:13]} 27. Qxd5 {[%clk 0:01:38]}  Rxh2 {[%clk 0:02:09]} 28. e6 {[%clk 0:01:33]}  Qh4 {[%clk 0:01:56]} 29. Qe5+ {[%clk 0:01:22]}  Kg8 {[%clk 0:01:52]} 30. Qxh2 {[%clk 0:01:20]}  Qxf2+ {[%clk 0:01:49]} 31. Kh1 {[%clk 0:01:21]}  Rf4 {[%clk 0:01:50]} 32. e7 {[%clk 0:01:16]}  Rh4 {[%clk 0:01:48]} 33. e8=Q+ {[%clk 0:01:15]}  Kg7 {[%clk 0:01:49]} 34. Qe7+ {[%clk 0:01:11]} 1-0


[Site "https://www.chess.com"]

[Event "Titled Tuesday Blitz December 20 Early 2022"]
[White "Cag, Ceyda"]
[Black "supertfc"]
[WhiteFideId "34571477"]
[WhiteElo "2157"]
[BlackElo "2268"]
[Result "0-1"]
[Round "11"]
[TimeControl "180+2"]
[Date "2022.12.20"]
[WhiteClock "0:00:03"]
[BlackClock "0:00:02"]

1. e4 {[%clk 0:03:00]}  c5 {[%clk 0:02:56]} 2. Nf3 {[%clk 0:03:00]}  Nc6 {[%clk 0:02:55]} 3. d4 {[%clk 0:03:00]}  cxd4 {[%clk 0:02:56]} 4. Nxd4 {[%clk 0:02:59]}  Nf6 {[%clk 0:02:56]} 5. Nc3 {[%clk 0:02:56]}  e5 {[%clk 0:02:56]} 6. Ndb5 {[%clk 0:02:52]}  d6 {[%clk 0:02:56]} 7. Bg5 {[%clk 0:02:50]}  a6 {[%clk 0:02:51]} 8. Na3 {[%clk 0:02:50]}  b5 {[%clk 0:02:51]} 9. Nd5 {[%clk 0:02:50]}  Be7 {[%clk 0:02:50]} 10. Bxf6 {[%clk 0:02:43]}  Bxf6 {[%clk 0:02:50]} 11. c3 {[%clk 0:02:43]}  O-O {[%clk 0:02:48]} 12. Nc2 {[%clk 0:02:32]}  Bg5 {[%clk 0:02:45]} 13. Be2 {[%clk 0:02:25]}  g6 {[%clk 0:02:39]} 14. O-O {[%clk 0:02:21]}  Be6 {[%clk 0:02:35]} 15. Nce3 {[%clk 0:02:16]}  Ne7 {[%clk 0:02:29]} 16. a4 {[%clk 0:02:13]}  bxa4 {[%clk 0:02:23]} 17. Rxa4 {[%clk 0:02:10]}  a5 {[%clk 0:02:23]} 18. Bc4 {[%clk 0:02:07]}  Kh8 {[%clk 0:02:01]} 19. Qd3 {[%clk 0:01:54]}  Bh6 {[%clk 0:01:39]} 20. Rd1 {[%clk 0:01:51]}  Nc8 {[%clk 0:01:16]} 21. b4 {[%clk 0:01:47]}  Nb6 {[%clk 0:00:54]} 22. Nxb6 {[%clk 0:01:43]}  Qxb6 {[%clk 0:00:51]} 23. Bxe6 {[%clk 0:00:56]}  fxe6 {[%clk 0:00:49]} 24. Ng4 {[%clk 0:00:56]}  Bg7 {[%clk 0:00:41]} 25. Qxd6 {[%clk 0:00:56]}  Rad8 {[%clk 0:00:34]} 26. Qxd8 {[%clk 0:00:52]}  Rxd8 {[%clk 0:00:34]} 27. Rxd8+ {[%clk 0:00:50]}  Qxd8 {[%clk 0:00:35]} 28. Ne3 {[%clk 0:00:47]}  Bh6 {[%clk 0:00:28]} 29. Nf1 {[%clk 0:00:24]}  axb4 {[%clk 0:00:24]} 30. cxb4 {[%clk 0:00:22]}  Qd3 {[%clk 0:00:21]} 31. Ra8+ {[%clk 0:00:17]}  Kg7 {[%clk 0:00:21]} 32. Ra7+ {[%clk 0:00:17]}  Kg8 {[%clk 0:00:18]} 33. Ra8+ {[%clk 0:00:17]}  Bf8 {[%clk 0:00:15]} 34. Rb8 {[%clk 0:00:15]}  Qxe4 {[%clk 0:00:11]} 35. b5 {[%clk 0:00:16]}  Kf7 {[%clk 0:00:11]} 36. g3 {[%clk 0:00:15]}  Bc5 {[%clk 0:00:10]} 37. b6 {[%clk 0:00:10]}  Qf3 {[%clk 0:00:07]} 38. Ne3 {[%clk 0:00:09]}  Bxe3 {[%clk 0:00:07]} 39. fxe3 {[%clk 0:00:10]}  Qxe3+ {[%clk 0:00:08]} 40. Kg2 {[%clk 0:00:10]}  Qe4+ {[%clk 0:00:07]} 41. Kh3 {[%clk 0:00:08]}  Qf5+ {[%clk 0:00:06]} 42. Kg2 {[%clk 0:00:08]}  Qc2+ {[%clk 0:00:06]} 43. Kh3 {[%clk 0:00:07]}  Qb2 {[%clk 0:00:05]} 44. b7 {[%clk 0:00:05]}  Kg7 {[%clk 0:00:04]} 45. Kg4 {[%clk 0:00:04]}  Qb6 {[%clk 0:00:03]} 46. h4 {[%clk 0:00:03]}  h5+ {[%clk 0:00:02]} 47. Kh3 {[%clk 0:00:03]}  Qc7 {[%clk 0:00:02]} 0-1


[Site "https://www.chess.com"]

[Event "Titled Tuesday Blitz December 20 Early 2022"]
[White "Cambel, Vladimir"]
[Black "KerryStead"]
[WhiteFideId "14908930"]
[WhiteElo "2006"]
[BlackElo "2033"]
[Result "1-0"]
[Round "11"]
[TimeControl "180+2"]
[Date "2022.12.20"]
[WhiteClock "0:00:41"]
[BlackClock "0:00:20"]

1. e4 {[%clk 0:02:57]}  c6 {[%clk 0:02:59]} 2. Nf3 {[%clk 0:02:54]}  d5 {[%clk 0:02:59]} 3. Nc3 {[%clk 0:02:55]}  dxe4 {[%clk 0:02:58]} 4. Nxe4 {[%clk 0:02:54]}  Bg4 {[%clk 0:02:59]} 5. Be2 {[%clk 0:02:53]}  Nd7 {[%clk 0:02:58]} 6. O-O {[%clk 0:02:52]}  Ngf6 {[%clk 0:02:56]} 7. d3 {[%clk 0:02:51]}  e6 {[%clk 0:02:52]} 8. h3 {[%clk 0:02:50]}  Bxf3 {[%clk 0:02:52]} 9. Bxf3 {[%clk 0:02:49]}  Nxe4 {[%clk 0:02:51]} 10. Bxe4 {[%clk 0:02:47]}  Nf6 {[%clk 0:02:51]} 11. Bf3 {[%clk 0:02:46]}  Bd6 {[%clk 0:02:48]} 12. d4 {[%clk 0:02:46]}  O-O {[%clk 0:02:47]} 13. c3 {[%clk 0:02:39]}  Bc7 {[%clk 0:02:47]} 14. g3 {[%clk 0:02:38]}  h6 {[%clk 0:02:39]} 15. Re1 {[%clk 0:02:37]}  Qe7 {[%clk 0:02:35]} 16. b3 {[%clk 0:02:28]}  Rfd8 {[%clk 0:02:32]} 17. Qc2 {[%clk 0:02:26]}  c5 {[%clk 0:02:29]} 18. Be3 {[%clk 0:02:16]}  cxd4 {[%clk 0:02:17]} 19. Bxd4 {[%clk 0:02:14]}  Ba5 {[%clk 0:02:02]} 20. Rad1 {[%clk 0:02:09]}  Rac8 {[%clk 0:01:58]} 21. Qb2 {[%clk 0:02:03]}  Nd5 {[%clk 0:01:50]} 22. b4 {[%clk 0:02:02]}  Bb6 {[%clk 0:01:46]} 23. Bxd5 {[%clk 0:01:51]}  Rxd5 {[%clk 0:01:38]} 24. Bxb6 {[%clk 0:01:51]}  Rxd1 {[%clk 0:01:36]} 25. Rxd1 {[%clk 0:01:51]}  axb6 {[%clk 0:01:36]} 26. Rd3 {[%clk 0:01:47]}  Qf6 {[%clk 0:01:31]} 27. Qd2 {[%clk 0:01:47]}  Kh7 {[%clk 0:01:24]} 28. h4 {[%clk 0:01:46]}  b5 {[%clk 0:01:21]} 29. Rd4 {[%clk 0:01:43]}  g6 {[%clk 0:01:17]} 30. Qd3 {[%clk 0:01:40]}  Qe5 {[%clk 0:01:11]} 31. Kg2 {[%clk 0:01:34]}  Kg7 {[%clk 0:01:07]} 32. a3 {[%clk 0:01:20]}  Rc6 {[%clk 0:00:59]} 33. Qd2 {[%clk 0:01:19]}  Ra6 {[%clk 0:00:55]} 34. Rf4 {[%clk 0:01:08]}  g5 {[%clk 0:00:44]} 35. hxg5 {[%clk 0:01:06]}  hxg5 {[%clk 0:00:44]} 36. Rg4 {[%clk 0:00:54]}  f6 {[%clk 0:00:44]} 37. Qd7+ {[%clk 0:00:52]}  Kg6 {[%clk 0:00:42]} 38. Qe8+ {[%clk 0:00:48]}  Kf5 {[%clk 0:00:36]} 39. Rd4 {[%clk 0:00:45]}  Qe2 {[%clk 0:00:23]} 40. g4+ {[%clk 0:00:43]}  Ke5 {[%clk 0:00:20]} 41. Qb8+ {[%clk 0:00:41]} 1-0


[Site "https://www.chess.com"]

[Event "Titled Tuesday Blitz December 20 Early 2022"]
[White "ChessTankMan"]
[Black "Ural_bogatyr"]
[WhiteElo "2514"]
[BlackElo "2615"]
[Result "0-1"]
[Round "11"]
[TimeControl "180+2"]
[Date "2022.12.20"]
[WhiteClock "0:00:04"]
[BlackClock "0:00:03"]

1. e4 {[%clk 0:03:00]}  c6 {[%clk 0:02:58]} 2. Nc3 {[%clk 0:03:00]}  d5 {[%clk 0:02:58]} 3. Nf3 {[%clk 0:03:01]}  dxe4 {[%clk 0:02:57]} 4. Nxe4 {[%clk 0:03:02]}  Nf6 {[%clk 0:02:58]} 5. Qe2 {[%clk 0:03:01]}  Nxe4 {[%clk 0:02:58]} 6. Qxe4 {[%clk 0:03:02]}  Qd5 {[%clk 0:02:58]} 7. Qe3 {[%clk 0:03:02]}  Bf5 {[%clk 0:02:50]} 8. b3 {[%clk 0:03:01]}  Nd7 {[%clk 0:02:43]} 9. Bc4 {[%clk 0:02:59]}  Qa5 {[%clk 0:02:40]} 10. O-O {[%clk 0:02:54]}  e6 {[%clk 0:02:38]} 11. Bb2 {[%clk 0:02:40]}  Nb6 {[%clk 0:02:37]} 12. Be2 {[%clk 0:02:24]}  Nd5 {[%clk 0:02:35]} 13. Qg5 {[%clk 0:02:13]}  h6 {[%clk 0:02:28]} 14. Qg3 {[%clk 0:02:12]}  O-O-O {[%clk 0:02:25]} 15. c4 {[%clk 0:02:05]}  Nf6 {[%clk 0:02:21]} 16. d4 {[%clk 0:01:59]}  g5 {[%clk 0:02:11]} 17. Qe5 {[%clk 0:01:37]}  Qxe5 {[%clk 0:02:08]} 18. Nxe5 {[%clk 0:01:38]}  Rh7 {[%clk 0:02:01]} 19. Rad1 {[%clk 0:01:35]}  Nd7 {[%clk 0:01:54]} 20. Nf3 {[%clk 0:01:28]}  Be7 {[%clk 0:01:48]} 21. d5 {[%clk 0:01:24]}  cxd5 {[%clk 0:01:35]} 22. cxd5 {[%clk 0:01:24]}  exd5 {[%clk 0:01:35]} 23. Rxd5 {[%clk 0:01:21]}  Be6 {[%clk 0:01:31]} 24. Rd2 {[%clk 0:01:17]}  Nc5 {[%clk 0:01:28]} 25. Rc2 {[%clk 0:01:12]}  Kb8 {[%clk 0:01:25]} 26. Bc4 {[%clk 0:01:05]}  Bf5 {[%clk 0:01:23]} 27. Rcc1 {[%clk 0:01:03]}  Be4 {[%clk 0:01:18]} 28. Rfe1 {[%clk 0:00:59]}  f5 {[%clk 0:01:13]} 29. Ne5 {[%clk 0:00:53]}  Rd2 {[%clk 0:00:56]} 30. Bc3 {[%clk 0:00:48]}  Rd8 {[%clk 0:00:56]} 31. f3 {[%clk 0:00:45]}  Bd5 {[%clk 0:00:52]} 32. Bxd5 {[%clk 0:00:38]}  Rxd5 {[%clk 0:00:53]} 33. Rcd1 {[%clk 0:00:37]}  Rxd1 {[%clk 0:00:52]} 34. Rxd1 {[%clk 0:00:37]}  Kc8 {[%clk 0:00:33]} 35. Rc1 {[%clk 0:00:36]}  Bd6 {[%clk 0:00:24]} 36. Nc4 {[%clk 0:00:35]}  Bc7 {[%clk 0:00:21]} 37. Bd4 {[%clk 0:00:33]}  Nd3 {[%clk 0:00:16]} 38. Rc3 {[%clk 0:00:30]}  Nb4 {[%clk 0:00:16]} 39. a3 {[%clk 0:00:20]}  Nc6 {[%clk 0:00:16]} 40. Bf2 {[%clk 0:00:18]}  Rd7 {[%clk 0:00:15]} 41. Rc1 {[%clk 0:00:16]}  Rd3 {[%clk 0:00:15]} 42. b4 {[%clk 0:00:16]}  Rb3 {[%clk 0:00:13]} 43. h4 {[%clk 0:00:14]}  Kd7 {[%clk 0:00:10]} 44. hxg5 {[%clk 0:00:14]}  hxg5 {[%clk 0:00:11]} 45. Rd1+ {[%clk 0:00:14]}  Ke6 {[%clk 0:00:10]} 46. Re1+ {[%clk 0:00:09]}  Kf7 {[%clk 0:00:10]} 47. Rd1 {[%clk 0:00:09]}  Bf4 {[%clk 0:00:08]} 48. g3 {[%clk 0:00:08]}  Bb8 {[%clk 0:00:06]} 49. Kg2 {[%clk 0:00:08]}  b5 {[%clk 0:00:05]} 50. Nd6+ {[%clk 0:00:05]}  Ke6 {[%clk 0:00:05]} 51. Nxb5 {[%clk 0:00:04]}  a6 {[%clk 0:00:05]} 52. Nd4+ {[%clk 0:00:04]}  Nxd4 {[%clk 0:00:05]} 53. Rxd4 {[%clk 0:00:04]}  Rxa3 {[%clk 0:00:06]} 54. Rc4 {[%clk 0:00:04]}  Bd6 {[%clk 0:00:03]} 0-1


[Site "https://www.chess.com"]

[Event "Titled Tuesday Blitz December 20 Early 2022"]
[White "Chessmissile07"]
[Black "Sokolov, Ivan"]
[BlackFideId "14400030"]
[WhiteElo "2730"]
[BlackElo "2590"]
[Result "0-1"]
[Round "11"]
[TimeControl "180+2"]
[Date "2022.12.20"]
[WhiteClock "0:00:12"]
[BlackClock "0:00:09"]

1. e4 {[%clk 0:03:00]}  d6 {[%clk 0:03:00]} 2. d4 {[%clk 0:03:00]}  Nf6 {[%clk 0:03:01]} 3. Nc3 {[%clk 0:03:00]}  g6 {[%clk 0:03:01]} 4. Bg5 {[%clk 0:02:59]}  Bg7 {[%clk 0:03:00]} 5. f4 {[%clk 0:03:00]}  c5 {[%clk 0:02:53]} 6. e5 {[%clk 0:02:52]}  Ng4 {[%clk 0:02:03]} 7. Bb5+ {[%clk 0:02:47]}  Kf8 {[%clk 0:01:48]} 8. exd6 {[%clk 0:02:21]}  Qxd6 {[%clk 0:01:36]} 9. dxc5 {[%clk 0:02:21]}  Bxc3+ {[%clk 0:01:33]} 10. bxc3 {[%clk 0:02:20]}  Qxc5 {[%clk 0:01:16]} 11. Qd8+ {[%clk 0:01:13]}  Kg7 {[%clk 0:01:16]} 12. Qd4+ {[%clk 0:01:13]}  Qxd4 {[%clk 0:01:17]} 13. cxd4 {[%clk 0:01:14]}  f6 {[%clk 0:01:17]} 14. Bh4 {[%clk 0:01:14]}  Ne3 {[%clk 0:01:18]} 15. Kd2 {[%clk 0:01:14]}  Nf5 {[%clk 0:01:05]} 16. Bf2 {[%clk 0:01:14]}  Nc6 {[%clk 0:01:06]} 17. Bxc6 {[%clk 0:01:08]}  bxc6 {[%clk 0:01:06]} 18. Nf3 {[%clk 0:01:08]}  Rb8 {[%clk 0:00:56]} 19. Rhe1 {[%clk 0:01:03]}  Kf7 {[%clk 0:00:56]} 20. Rab1 {[%clk 0:00:49]}  Be6 {[%clk 0:00:56]} 21. a3 {[%clk 0:00:45]}  Bd5 {[%clk 0:00:50]} 22. Kd3 {[%clk 0:00:24]}  Nd6 {[%clk 0:00:41]} 23. Rb4 {[%clk 0:00:20]}  a5 {[%clk 0:00:35]} 24. Rbb1 {[%clk 0:00:15]}  Ba2 {[%clk 0:00:29]} 25. Rxb8 {[%clk 0:00:10]}  Rxb8 {[%clk 0:00:30]} 26. Nd2 {[%clk 0:00:11]}  Be6 {[%clk 0:00:29]} 27. Rb1 {[%clk 0:00:10]}  Bf5+ {[%clk 0:00:27]} 28. Ke2 {[%clk 0:00:07]}  Rxb1 {[%clk 0:00:26]} 29. Nxb1 {[%clk 0:00:08]}  Bxc2 {[%clk 0:00:26]} 30. Nc3 {[%clk 0:00:05]}  Ke6 {[%clk 0:00:26]} 31. Kd2 {[%clk 0:00:04]}  Bf5 {[%clk 0:00:26]} 32. Kc1 {[%clk 0:00:03]}  Nc4 {[%clk 0:00:25]} 33. a4 {[%clk 0:00:03]}  Kd6 {[%clk 0:00:21]} 34. g3 {[%clk 0:00:04]}  h5 {[%clk 0:00:15]} 35. Be1 {[%clk 0:00:04]}  Nb6 {[%clk 0:00:12]} 36. Nd1 {[%clk 0:00:03]}  Nxa4 {[%clk 0:00:08]} 37. Bxa5 {[%clk 0:00:04]}  Kd5 {[%clk 0:00:08]} 38. Bb4 {[%clk 0:00:02]}  e6 {[%clk 0:00:05]} 39. Be7 {[%clk 0:00:03]}  Kxd4 {[%clk 0:00:05]} 40. Bxf6+ {[%clk 0:00:03]}  Kd3 {[%clk 0:00:06]} 41. Nf2+ {[%clk 0:00:02]}  Ke2 {[%clk 0:00:06]} 42. Nd1 {[%clk 0:00:03]}  Kf3 {[%clk 0:00:06]} 43. Be5 {[%clk 0:00:02]}  Kg2 {[%clk 0:00:06]} 44. Ne3+ {[%clk 0:00:02]}  Kxh2 {[%clk 0:00:07]} 45. Kd2 {[%clk 0:00:01]}  Kxg3 {[%clk 0:00:06]} 46. Ke2 {[%clk 0:00:02]}  Nc5 {[%clk 0:00:06]} 47. Nf1+ {[%clk 0:00:03]}  Kg2 {[%clk 0:00:06]} 48. Ne3+ {[%clk 0:00:03]}  Kg3 {[%clk 0:00:06]} 49. Nf1+ {[%clk 0:00:04]}  Kh3 {[%clk 0:00:07]} 50. Kf3 {[%clk 0:00:03]}  Ne4 {[%clk 0:00:07]} 51. Ne3 {[%clk 0:00:03]}  Nd2+ {[%clk 0:00:08]} 52. Ke2 {[%clk 0:00:03]}  Nb3 {[%clk 0:00:08]} 53. Kf3 {[%clk 0:00:04]}  Nc5 {[%clk 0:00:08]} 54. Bd6 {[%clk 0:00:04]}  Be4+ {[%clk 0:00:08]} 55. Kf2 {[%clk 0:00:04]}  Nd3+ {[%clk 0:00:09]} 56. Ke2 {[%clk 0:00:04]}  c5 {[%clk 0:00:07]} 57. Nf1 {[%clk 0:00:05]}  c4 {[%clk 0:00:07]} 58. Nd2 {[%clk 0:00:05]}  Bd5 {[%clk 0:00:08]} 59. Be5 {[%clk 0:00:05]}  Kg4 {[%clk 0:00:09]} 60. Bd6 {[%clk 0:00:05]}  Nxf4+ {[%clk 0:00:09]} 61. Ke3 {[%clk 0:00:06]}  Ng2+ {[%clk 0:00:08]} 62. Kf2 {[%clk 0:00:06]}  h4 {[%clk 0:00:08]} 63. Nf1 {[%clk 0:00:06]}  h3 {[%clk 0:00:08]} 64. Bg3 {[%clk 0:00:06]}  c3 {[%clk 0:00:08]} 65. Nh2+ {[%clk 0:00:06]}  Kf5 {[%clk 0:00:08]} 66. Ke2 {[%clk 0:00:06]}  c2 {[%clk 0:00:08]} 67. Kd2 {[%clk 0:00:07]}  Be4 {[%clk 0:00:09]} 68. Kc1 {[%clk 0:00:07]}  g5 {[%clk 0:00:08]} 69. Nf1 {[%clk 0:00:07]}  Kg4 {[%clk 0:00:08]} 70. Bh2 {[%clk 0:00:07]}  Kf3 {[%clk 0:00:09]} 71. Nd2+ {[%clk 0:00:08]}  Ke3 {[%clk 0:00:10]} 72. Bg1+ {[%clk 0:00:08]}  Kd3 {[%clk 0:00:10]} 73. Bh2 {[%clk 0:00:08]}  Nh4 {[%clk 0:00:09]} 74. Bg3 {[%clk 0:00:08]}  Nf3 {[%clk 0:00:10]} 75. Nf1 {[%clk 0:00:08]}  g4 {[%clk 0:00:09]} 76. Bf4 {[%clk 0:00:08]}  Kd4 {[%clk 0:00:07]} 77. Ng3 {[%clk 0:00:08]}  h2 {[%clk 0:00:07]} 78. Ne2+ {[%clk 0:00:08]}  Kd3 {[%clk 0:00:07]} 79. Ng3 {[%clk 0:00:09]}  e5 {[%clk 0:00:07]} 80. Nh1 {[%clk 0:00:09]}  exf4 {[%clk 0:00:07]} 81. Nf2+ {[%clk 0:00:09]}  Kd4 {[%clk 0:00:07]} 82. Nxg4 {[%clk 0:00:09]}  h1=Q+ {[%clk 0:00:07]} 83. Kb2 {[%clk 0:00:10]}  Qb1+ {[%clk 0:00:08]} 84. Ka3 {[%clk 0:00:10]}  c1=Q+ {[%clk 0:00:09]} 85. Ka4 {[%clk 0:00:11]}  Bc6+ {[%clk 0:00:09]} 86. Ka5 {[%clk 0:00:12]}  Qa3# {[%clk 0:00:09]} 0-1


[Site "https://www.chess.com"]

[Event "Titled Tuesday Blitz December 20 Early 2022"]
[White "CristobalBlanco"]
[Black "Malich, Burkhard, Dr."]
[BlackFideId "4611330"]
[WhiteElo "2476"]
[BlackElo "2323"]
[Result "0-1"]
[Round "11"]
[TimeControl "180+2"]
[Date "2022.12.20"]
[WhiteClock "0:00:05"]
[BlackClock "0:00:13"]

1. e4 {[%clk 0:02:32]}  c5 {[%clk 0:02:59]} 2. Nf3 {[%clk 0:02:31]}  Nc6 {[%clk 0:02:59]} 3. d4 {[%clk 0:02:32]}  cxd4 {[%clk 0:03:00]} 4. Nxd4 {[%clk 0:02:32]}  Nf6 {[%clk 0:03:00]} 5. Nc3 {[%clk 0:02:32]}  e5 {[%clk 0:03:01]} 6. Ndb5 {[%clk 0:02:33]}  d6 {[%clk 0:03:01]} 7. Bg5 {[%clk 0:02:33]}  a6 {[%clk 0:03:02]} 8. Bxf6 {[%clk 0:02:34]}  gxf6 {[%clk 0:03:01]} 9. Na3 {[%clk 0:02:34]}  b5 {[%clk 0:03:02]} 10. Nd5 {[%clk 0:02:34]}  f5 {[%clk 0:03:03]} 11. exf5 {[%clk 0:02:34]}  Bxf5 {[%clk 0:03:02]} 12. c3 {[%clk 0:02:35]}  Bg7 {[%clk 0:03:03]} 13. Nc2 {[%clk 0:02:35]}  O-O {[%clk 0:03:03]} 14. Nce3 {[%clk 0:02:36]}  Be6 {[%clk 0:03:03]} 15. Bd3 {[%clk 0:02:35]}  f5 {[%clk 0:03:04]} 16. Bc2 {[%clk 0:02:36]}  Ra7 {[%clk 0:01:43]} 17. a4 {[%clk 0:02:29]}  b4 {[%clk 0:01:35]} 18. Bb3 {[%clk 0:02:21]}  Kh8 {[%clk 0:01:34]} 19. cxb4 {[%clk 0:02:17]}  Nd4 {[%clk 0:01:34]} 20. Bc4 {[%clk 0:02:06]}  f4 {[%clk 0:01:08]} 21. Nc2 {[%clk 0:02:01]}  Qa8 {[%clk 0:01:05]} 22. Nxd4 {[%clk 0:01:46]}  Bxd5 {[%clk 0:01:05]} 23. Bxd5 {[%clk 0:01:40]}  Qxd5 {[%clk 0:01:05]} 24. Ne2 {[%clk 0:00:58]}  Qxg2 {[%clk 0:00:55]} 25. Rg1 {[%clk 0:00:58]}  Qe4 {[%clk 0:00:48]} 26. Kf1 {[%clk 0:00:51]}  f3 {[%clk 0:00:40]} 27. Nc1 {[%clk 0:00:42]}  Qxb4 {[%clk 0:00:33]} 28. Ra3 {[%clk 0:00:38]}  e4 {[%clk 0:00:30]} 29. Qb3 {[%clk 0:00:24]}  Qd2 {[%clk 0:00:20]} 30. Qe3 {[%clk 0:00:20]}  Qxe3 {[%clk 0:00:13]} 31. Rxe3 {[%clk 0:00:20]}  Rc7 {[%clk 0:00:13]} 32. Nb3 {[%clk 0:00:20]}  d5 {[%clk 0:00:14]} 33. Rg4 {[%clk 0:00:17]}  Rc2 {[%clk 0:00:14]} 34. Rg5 {[%clk 0:00:14]}  Rxb2 {[%clk 0:00:14]} 35. Rxd5 {[%clk 0:00:13]}  Rb1+ {[%clk 0:00:14]} 36. Re1 {[%clk 0:00:12]}  Rxb3 {[%clk 0:00:15]} 37. Rxe4 {[%clk 0:00:12]}  Rb1+ {[%clk 0:00:15]} 38. Re1 {[%clk 0:00:13]}  Rfb8 {[%clk 0:00:15]} 39. Rd6 {[%clk 0:00:10]}  Rxe1+ {[%clk 0:00:15]} 40. Kxe1 {[%clk 0:00:11]}  Bc3+ {[%clk 0:00:15]} 41. Kd1 {[%clk 0:00:11]}  Rb2 {[%clk 0:00:16]} 42. Rxa6 {[%clk 0:00:08]}  Rxf2 {[%clk 0:00:16]} 43. Rc6 {[%clk 0:00:07]}  Bd4 {[%clk 0:00:15]} 44. Rd6 {[%clk 0:00:07]}  Be3 {[%clk 0:00:14]} 45. Rd3 {[%clk 0:00:07]}  Re2 {[%clk 0:00:13]} 46. a5 {[%clk 0:00:07]}  Kg7 {[%clk 0:00:14]} 47. a6 {[%clk 0:00:07]}  Kg6 {[%clk 0:00:11]} 48. Rd7 {[%clk 0:00:06]}  Bf2 {[%clk 0:00:10]} 49. a7 {[%clk 0:00:05]}  Ra2 {[%clk 0:00:08]} 50. Rd3 {[%clk 0:00:02]}  Bxa7 {[%clk 0:00:07]} 51. Rxf3 {[%clk 0:00:02]}  Rxh2 {[%clk 0:00:07]} 52. Ke1 {[%clk 0:00:02]}  Rg2 {[%clk 0:00:07]} 53. Kf1 {[%clk 0:00:02]}  Rg1+ {[%clk 0:00:07]} 54. Ke2 {[%clk 0:00:02]}  h5 {[%clk 0:00:08]} 55. Ra3 {[%clk 0:00:02]}  Bc5 {[%clk 0:00:08]} 56. Ra6+ {[%clk 0:00:03]}  Kh7 {[%clk 0:00:06]} 57. Kf3 {[%clk 0:00:03]}  Rg6 {[%clk 0:00:06]} 58. Rc6 {[%clk 0:00:04]}  Bd6 {[%clk 0:00:07]} 59. Rc4 {[%clk 0:00:04]}  Kh6 {[%clk 0:00:07]} 60. Rd4 {[%clk 0:00:03]}  Rf6+ {[%clk 0:00:07]} 61. Kg2 {[%clk 0:00:03]}  Kg5 {[%clk 0:00:08]} 62. Kh3 {[%clk 0:00:03]}  Rf3+ {[%clk 0:00:07]} 63. Kg2 {[%clk 0:00:03]}  Rf6 {[%clk 0:00:08]} 64. Rd5+ {[%clk 0:00:03]}  Kg4 {[%clk 0:00:08]} 65. Rd4+ {[%clk 0:00:03]}  Bf4 {[%clk 0:00:08]} 66. Rd5 {[%clk 0:00:03]}  h4 {[%clk 0:00:09]} 67. Rd7 {[%clk 0:00:03]}  Ra6 {[%clk 0:00:09]} 68. Rg7+ {[%clk 0:00:04]}  Bg5 {[%clk 0:00:10]} 69. Rd7 {[%clk 0:00:04]}  Ra2+ {[%clk 0:00:11]} 70. Kh1 {[%clk 0:00:04]}  Bf4 {[%clk 0:00:10]} 71. Rd4 {[%clk 0:00:05]}  h3 {[%clk 0:00:11]} 72. Rd1 {[%clk 0:00:05]}  Bg3 {[%clk 0:00:10]} 73. Rb1 {[%clk 0:00:05]}  Rh2+ {[%clk 0:00:10]} 74. Kg1 {[%clk 0:00:05]}  Rg2+ {[%clk 0:00:10]} 75. Kh1 {[%clk 0:00:05]}  Ra2 {[%clk 0:00:11]} 76. Rb4+ {[%clk 0:00:05]}  Bf4 {[%clk 0:00:12]} 77. Rb1 {[%clk 0:00:06]}  Rc2 {[%clk 0:00:12]} 78. Rg1+ {[%clk 0:00:06]}  Kh4 {[%clk 0:00:13]} 79. Rb1 {[%clk 0:00:07]}  Rf2 {[%clk 0:00:12]} 80. Rd1 {[%clk 0:00:05]}  Be3 {[%clk 0:00:13]} 81. Rb1 {[%clk 0:00:05]}  Kg3 {[%clk 0:00:13]} 82. Re1 {[%clk 0:00:05]}  Rh2# {[%clk 0:00:13]} 0-1


[Site "https://www.chess.com"]